[Event "CZE-ch Youth B16 2022"]
[Site "Luhacovice"]
[Date "2022.03.15"]
[Round "5.2"]
[White "Jirasko, Miroslav"]
[Black "Dolensky, Filip"]
[Result "1/2-1/2"]
[ECO "E92"]
[WhiteElo "1933"]
[BlackElo "2021"]
[Annotator "ChessBase"]
[PlyCount "91"]
[EventDate "2022.03.12"]
[EventType "swiss"]
[EventCountry "CZE"]
[SourceTitle "playchess.com"]
[Source "ChessBase"]
[SourceQuality "1"]
[TimeControl "40/5400+30:1800+30"]

1. Nf3 {[%emt 0:00:18]} Nf6 {[%emt 0:00:35]} 2. d4 {[%emt 0:00:15]} g6 {[%emt 0:01:06]} 3. c4 {[%emt 0:00:05]} Bg7 {[%emt 0:00:08]} 4. Nc3 {[%emt 0:00:05]} d6 {[%emt 0:00:15]} 5. e4 {[%emt 0:00:05]} O-O {[%emt 0:00:09]} 6. Be2 {[%emt 0:00:05]} e5 {[%emt 0:00:26]} 7. dxe5 {[%emt 0:00:26]} dxe5 {[%emt 0:00:08]} 8. Qxd8 {[%emt 0:00:05]} Rxd8 {[%emt 0:00:03]} 9. Bg5 {[%emt 0:00:06]} Re8 {[%emt 0:01:26]} 10. O-O-O {[%emt 0:01:36]} h6 {[%emt 0:03:29]} 11. Be3 {[%emt 0:01:06]} c6 {[%emt 0:01:07]} 12. Ne1 {[%emt 0:03:03]} Be6 {[%emt 0:03:23]} 13. f3 {[%emt 0:01:43]} Nbd7 {[%emt 0:01:21]} 14. Nc2 {[%emt 0:06:38]} Red8 {[%emt 0:05:51]} 15. b4 {[%emt 0:15:34]} Bf8 {[%emt 0:04:38]} 16. Bf2 {[%emt 0:16:14]} Be7 {[%emt 0:05:42]} 17. g4 {[%emt 0:02:03]} Ne8 {[%emt 0:11:55]} 18. h4 {[%emt 0:05:42]} a5 {[%emt 0:02:21]} 19. a3 {[%emt 0:02:46]} Nd6 {[%emt 0:00:58]} 20. Ne3 {[%emt 0:08:38]} b6 {[%emt 0:06:57]} 21. Kb2 {[%emt 0:04:03]} axb4 {[%emt 0:03:51]} 22. axb4 {[%emt 0:00:09]} Ra7 {[%emt 0:02:17]} 23. Ra1 {[%emt 0:00:29]} Rda8 {[%emt 0:00:09]} 24. Rxa7 {[%emt 0:00:12]} Rxa7 {[%emt 0:00:01]} 25. b5 {[%emt 0:11:22]} c5 {[%emt 0:03:17]} 26. Ned5 {[%emt 0:01:15]} Bxd5 {[%emt 0:01:58]} 27. Nxd5 {[%emt 0:07:14]} Bd8 {[%emt 0:00:40]} 28. Be3 {[%emt 0:00:21]} Kg7 {[%emt 0:02:15]} 29. Bd2 {[%emt 0:04:46]} g5 {[%emt 0:01:37]} 30. hxg5 {[%emt 0:01:52]} hxg5 {[%emt 0:00:08]} 31. Bc3 {[%emt 0:00:52]} f6 {[%emt 0:01:30]} 32. Ne3 {[%emt 0:00:31]} Be7 {[%emt 0:00:38]} 33. Rd1 {[%emt 0:02:27]} Kg6 {[%emt 0:01:33]} 34. Nf5 {[%emt 0:00:10]} Nxf5 {[%emt 0:00:47]} 35. exf5+ {[%emt 0:00:06]} Kg7 {[%emt 0:01:34]} 36. Bd3 {[%emt 0:00:14]} Nf8 {[%emt 0:04:26]} 37. Be4 {[%emt 0:00:06]} Nh7 {[%emt 0:00:52]} 38. Kb3 {[%emt 0:01:20]} Nf8 {[%emt 0:00:51]} 39. Bc6 {[%emt 0:00:05]} Nh7 {[%emt 0:00:39]} 40. Bb2 {[%emt 0:00:40]} Nf8 {[%emt 0:09:47]} 41. Kc3 {[%emt 0:10:44]} Kf7 {[%emt 0:02:34]} 42. Bd5+ {[%emt 0:00:40]} Ke8 {[%emt 0:00:55]} 43. Kb3 {[%emt 0:00:33]} Bd6 {[%emt 0:01:11]} 44. Bc6+ {[%emt 0:01:42]} Ke7 {[%emt 0:00:08]} 45. Rh1 {[%emt 0:00:45]} Kd8 {[%emt 0:01:12]} 46. Rd1 {[%emt 0:02:59]} 1/2-1/2

[Event "CZE-ch Youth B16 2022"]
[Site "Luhacovice"]
[Date "2022.03.15"]
[Round "5.3"]
[White "Janous, Marek"]
[Black "Stejskal, Michal"]
[Result "1/2-1/2"]
[ECO "C05"]
[WhiteElo "2056"]
[BlackElo "1857"]
[Annotator "ChessBase"]
[PlyCount "65"]
[EventDate "2022.03.12"]
[EventType "swiss"]
[EventCountry "CZE"]
[SourceTitle "playchess.com"]
[Source "ChessBase"]
[SourceQuality "1"]
[TimeControl "40/5400+30:1800+30"]

1. e4 {[%emt 0:00:15]} e6 {[%emt 0:00:20]} 2. d4 {[%emt 0:01:52]} d5 {[%emt 0:00:23]} 3. Nd2 {[%emt 0:01:12]} Nf6 {[%emt 0:02:13]} 4. e5 {[%emt 0:00:31]} Nfd7 {[%emt 0:00:08]} 5. Bd3 {[%emt 0:00:24]} c5 {[%emt 0:00:42]} 6. c3 {[%emt 0:00:12]} Nc6 {[%emt 0:00:34]} 7. Ne2 {[%emt 0:00:25]} c4 {[%emt 0:04:18]} 8. Bc2 {[%emt 0:09:02]} b5 {[%emt 0:01:55]} 9. O-O {[%emt 0:03:18]} Qb6 {[%emt 0:04:34]} 10. Kh1 {[%emt 0:01:10]} Bb7 {[%emt 0:05:02]} 11. f4 {[%emt 0:03:00]} g6 {[%emt 0:06:27]} 12. Nf3 {[%emt 0:11:58]} Be7 {[%emt 0:00:18]} 13. Ng5 {[%emt 0:08:23]} b4 {[%emt 0:05:24]} 14. Ng3 {[%emt 0:06:21]} a5 {[%emt 0:03:25]} 15. f5 {[%emt 0:14:12]} exf5 {[%emt 0:07:24]} 16. Nxf7 {[%emt 0:05:18]} Rf8 {[%emt 0:07:10]} 17. Nd6+ {[%emt 0:05:08]} Bxd6 {[%emt 0:00:14]} 18. exd6 {[%emt 0:00:05]} O-O-O {[%emt 0:00:27]} 19. Bf4 {[%emt 0:06:17]} Rde8 {[%emt 0:03:51]} 20. Qf3 {[%emt 0:01:32]} Nd8 {[%emt 0:00:28]} 21. Rfe1 {[%emt 0:02:45]} Nf7 {[%emt 0:01:46]} 22. Re7 {[%emt 0:04:37]} bxc3 {[%emt 0:08:14]} 23. bxc3 {[%emt 0:01:31]} Nxd6 {[%emt 0:03:12]} 24. Rxh7 {[%emt 0:06:21]} Nf7 {[%emt 0:01:11]} 25. Rb1 {[%emt 0:02:03]} Qe6 {[%emt 0:01:12]} 26. h4 {[%emt 0:00:33]} Rh8 {[%emt 0:01:50]} 27. Rxh8 {[%emt 0:00:25]} Rxh8 {[%emt 0:00:05]} 28. h5 {[%emt 0:00:34]} Nf6 {[%emt 0:00:38]} 29. Kg1 {[%emt 0:00:57]} Nxh5 {[%emt 0:00:16]} 30. Nxh5 {[%emt 0:00:09]} Rxh5 {[%emt 0:00:11]} 31. Kf2 {[%emt 0:00:07]} Nd6 {[%emt 0:04:06]} 32. Rb6 {[%emt 0:03:54]} Rh1 {[%emt 0:03:52]} 33. Qe2 1/2-1/2

[Event "CZE-ch Youth B16 2022"]
[Site "Luhacovice"]
[Date "2022.03.15"]
[Round "5.4"]
[White "Le, Anh Dung"]
[Black "Bezdek, Tomas"]
[Result "1/2-1/2"]
[ECO "B47"]
[WhiteElo "1998"]
[BlackElo "1855"]
[Annotator "ChessBase"]
[PlyCount "42"]
[EventDate "2022.03.12"]
[EventType "swiss"]
[EventCountry "CZE"]
[SourceTitle "playchess.com"]
[Source "ChessBase"]
[SourceQuality "1"]
[TimeControl "40/5400+30:1800+30"]

1. e4 {[%emt 0:00:09]} c5 {[%emt 0:00:07]} 2. Nf3 {[%emt 0:00:24]} e6 {[%emt 0:00:13]} 3. d4 {[%emt 0:01:18]} cxd4 {[%emt 0:00:30]} 4. Nxd4 {[%emt 0:00:05]} Nc6 {[%emt 0:00:08]} 5. Nc3 {[%emt 0:00:24]} Qc7 {[%emt 0:01:36]} 6. g3 {[%emt 0:02:55]} a6 {[%emt 0:03:00]} 7. Bg2 {[%emt 0:01:01]} Nf6 {[%emt 0:01:50]} 8. O-O {[%emt 0:02:21]} Nxd4 {[%emt 0:04:18]} 9. Qxd4 {[%emt 0:04:37]} Bc5 {[%emt 0:03:57]} 10. Bf4 {[%emt 0:01:36]} d6 11. Qd2 {[%emt 0:03:46]} h6 {[%emt 0:04:36]} 12. Rad1 {[%emt 0:00:53]} e5 {[%emt 0:02:27]} 13. Be3 {[%emt 0:01:51]} Be6 {[%emt 0:03:41]} 14. Bxc5 {[%emt 0:01:09]} dxc5 {[%emt 0:03:25]} 15. Qd6 {[%emt 0:01:38]} Qxd6 16. Rxd6 {[%emt 0:00:11]} Ke7 {[%emt 0:07:20]} 17. Rb6 {[%emt 0:01:05]} Kd7 18. Rxb7+ {[%emt 0:00:26]} Kc6 {[%emt 0:03:28]} 19. Re7 {[%emt 0:00:43]} Kd6 {[%emt 0:07:47]} 20. Rb7 {[%emt 0:00:56]} Kc6 {[%emt 0:07:34]} 21. Re7 {[%emt 0:00:39]} Rhb8 {[%emt 0:00:28]} 1/2-1/2

[Event "CZE-ch Youth B16 2022"]
[Site "Luhacovice"]
[Date "2022.03.15"]
[Round "5.5"]
[White "Winter, Ondrej"]
[Black "Dedek, Jan"]
[Result "1-0"]
[ECO "B10"]
[WhiteElo "2147"]
[BlackElo "1963"]
[Annotator "ChessBase"]
[PlyCount "95"]
[EventDate "2022.03.12"]
[EventType "swiss"]
[EventCountry "CZE"]
[SourceTitle "playchess.com"]
[Source "ChessBase"]
[SourceQuality "1"]
[TimeControl "40/5400+30:1800+30"]

1. e4 c6 {[%emt 0:00:50]} 2. Nc3 {[%emt 0:00:13]} d5 {[%emt 0:00:23]} 3. Nf3 {[%emt 0:00:14]} dxe4 {[%emt 0:00:55]} 4. Nxe4 {[%emt 0:00:26]} Nd7 {[%emt 0:01:37]} 5. Qe2 {[%emt 0:01:20]} e6 {[%emt 0:00:54]} 6. g3 {[%emt 0:00:07]} Ngf6 {[%emt 0:06:51]} 7. Bg2 {[%emt 0:01:05]} Be7 {[%emt 0:01:48]} 8. O-O {[%emt 0:00:45]} O-O {[%emt 0:02:41]} 9. d4 {[%emt 0:02:58]} Nd5 {[%emt 0:03:58]} 10. Ne5 {[%emt 0:05:48]} N7f6 {[%emt 0:05:02]} 11. Rd1 {[%emt 0:15:40]} Nxe4 {[%emt 0:07:34]} 12. Bxe4 {[%emt 0:02:18]} Qc7 {[%emt 0:10:35]} 13. c4 {[%emt 0:03:40]} Nf6 {[%emt 0:00:18]} 14. Bg2 {[%emt 0:00:25]} Nd7 {[%emt 0:06:43]} 15. Bf4 {[%emt 0:03:49]} Nxe5 {[%emt 0:02:37]} 16. Bxe5 {[%emt 0:01:08]} Bd6 {[%emt 0:00:25]} 17. c5 {[%emt 0:01:14]} Bxe5 {[%emt 0:00:16]} 18. dxe5 {[%emt 0:02:03]} b6 {[%emt 0:00:44]} 19. Rac1 {[%emt 0:00:29]} Bb7 {[%emt 0:00:40]} 20. Rd6 {[%emt 0:00:16]} Rad8 {[%emt 0:01:40]} 21. Qd3 {[%emt 0:01:36]} bxc5 {[%emt 0:01:11]} 22. Rxc5 {[%emt 0:00:37]} Qb6 {[%emt 0:00:27]} 23. Qc3 {[%emt 0:03:51]} Rxd6 {[%emt 0:03:53]} 24. exd6 {[%emt 0:00:06]} Rd8 {[%emt 0:00:27]} 25. Qd4 {[%emt 0:21:04]} g6 {[%emt 0:03:02]} 26. h4 {[%emt 0:01:16]} h5 {[%emt 0:00:32]} 27. Bf3 {[%emt 0:02:11]} Rd7 {[%emt 0:01:13]} 28. Bxh5 {[%emt 0:06:12]} Qd8 {[%emt 0:00:07]} 29. Bf3 {[%emt 0:03:17]} Rxd6 {[%emt 0:00:13]} 30. Qe5 {[%emt 0:00:44]} Rd3 {[%emt 0:01:13]} 31. Bxc6 {[%emt 0:03:53]} Bxc6 {[%emt 0:00:32]} 32. Rxc6 {[%emt 0:00:20]} Rd7 {[%emt 0:02:35]} 33. Qc3 {[%emt 0:02:58]} Qe7 {[%emt 0:00:08]} 34. Rc8+ {[%emt 0:01:37]} Rd8 {[%emt 0:00:05]} 35. Qa3 {[%emt 0:00:11]} Qd7 {[%emt 0:00:49]} 36. Rxd8+ {[%emt 0:00:12]} Qxd8 {[%emt 0:00:03]} 37. Qxa7 {[%emt 0:00:05]} Qd1+ {[%emt 0:00:05]} 38. Kh2 {[%emt 0:00:06]} Qd2 {[%emt 0:00:19]} 39. Qb8+ {[%emt 0:05:22]} Kh7 {[%emt 0:00:08]} 40. Qf4 {[%emt 0:00:54]} Qxb2 {[%emt 0:00:21]} 41. Qxf7+ {[%emt 0:30:03]} Kh8 {[%emt 0:30:26]} 42. a4 {[%emt 0:00:16]} Qa2 {[%emt 0:00:12]} 43. a5 {[%emt 0:00:38]} Qxa5 {[%emt 0:00:11]} 44. Qxg6 {[%emt 0:00:05]} Qb6 {[%emt 0:00:20]} 45. Qf6+ {[%emt 0:00:10]} Kh7 {[%emt 0:00:05]} 46. h5 {[%emt 0:00:38]} Qc5 {[%emt 0:00:51]} 47. Qf7+ {[%emt 0:00:23]} Kh8 {[%emt 0:00:05]} 48. h6 {[%emt 0:00:29]} 1-0

[Event "CZE-ch Youth B16 2022"]
[Site "Luhacovice"]
[Date "2022.03.15"]
[Round "5.6"]
[White "Pelc, Adam"]
[Black "Hak, David"]
[Result "0-1"]
[ECO "B40"]
[WhiteElo "1811"]
[BlackElo "2132"]
[Annotator "ChessBase"]
[PlyCount "66"]
[EventDate "2022.03.12"]
[EventType "swiss"]
[EventCountry "CZE"]
[SourceTitle "playchess.com"]
[Source "ChessBase"]
[SourceQuality "1"]
[TimeControl "40/5400+30:1800+30"]

1. e4 {[%emt 0:00:03]} c5 {[%emt 0:03:20]} 2. Nf3 {[%emt 0:00:31]} e6 {[%emt 0:00:04]} 3. d4 {[%emt 0:00:40]} cxd4 {[%emt 0:00:01]} 4. Nxd4 {[%emt 0:00:24]} Nf6 {[%emt 0:00:01]} 5. Bd3 {[%emt 0:01:52]} Nc6 {[%emt 0:00:41]} 6. Nxc6 {[%emt 0:01:13]} bxc6 {[%emt 0:00:10]} 7. O-O {[%emt 0:01:04]} d5 {[%emt 0:01:11]} 8. exd5 {[%emt 0:05:21]} cxd5 {[%emt 0:01:14]} 9. Re1 {[%emt 0:03:28]} Bd6 {[%emt 0:00:45]} 10. Nc3 {[%emt 0:02:49]} O-O {[%emt 0:00:13]} 11. Bg5 {[%emt 0:00:40]} Bb7 {[%emt 0:00:23]} 12. Qe2 {[%emt 0:09:04]} e5 {[%emt 0:00:52]} 13. Ba6 {[%emt 0:01:14]} Bc6 {[%emt 0:00:53]} 14. Bb5 {[%emt 0:00:57]} Bb7 {[%emt 0:04:40]} 15. Ba6 {[%emt 0:00:24]} Bxa6 {[%emt 0:02:14]} 16. Qxa6 {[%emt 0:00:20]} e4 {[%emt 0:02:29]} 17. Nxd5 {[%emt 0:05:19]} Bxh2+ {[%emt 0:00:26]} 18. Kxh2 {[%emt 0:01:07]} Ng4+ {[%emt 0:00:19]} 19. Kg1 {[%emt 0:00:20]} Qxg5 {[%emt 0:01:40]} 20. Ne3 {[%emt 0:00:30]} Ne5 {[%emt 0:00:32]} 21. Kf1 {[%emt 0:03:20]} Qh5 {[%emt 0:01:44]} 22. Kg1 {[%emt 0:04:26]} Rae8 {[%emt 0:00:45]} 23. Qa4 {[%emt 0:06:05]} f5 {[%emt 0:00:57]} 24. Qb3+ {[%emt 0:03:14]} Kh8 {[%emt 0:00:09]} 25. Nf1 {[%emt 0:00:59]} Ng4 {[%emt 0:06:23]} 26. Qh3 {[%emt 0:02:23]} Qg5 {[%emt 0:01:19]} 27. Ne3 {[%emt 0:09:25]} Ne5 {[%emt 0:00:18]} 28. Qg3 {[%emt 0:00:24]} Qh5 {[%emt 0:00:27]} 29. Nd5 {[%emt 0:00:54]} Qf7 {[%emt 0:04:18]} 30. Rad1 {[%emt 0:03:09]} f4 {[%emt 0:01:23]} 31. Qh3 {[%emt 0:01:27]} Qg6 {[%emt 0:06:07]} 32. Kf1 {[%emt 0:00:42]} e3 {[%emt 0:03:51]} 33. Nc7 {[%emt 0:06:05]} Qxc2 {[%emt 0:01:02]} 0-1

[Event "CZE-ch Youth B16 2022"]
[Site "Luhacovice"]
[Date "2022.03.15"]
[Round "5.7"]
[White "Paseka, Matyas"]
[Black "Vaclavik, Jan"]
[Result "1/2-1/2"]
[ECO "B60"]
[WhiteElo "2058"]
[BlackElo "1997"]
[Annotator "ChessBase"]
[PlyCount "29"]
[EventDate "2022.03.12"]
[EventType "swiss"]
[EventCountry "CZE"]
[SourceTitle "playchess.com"]
[Source "ChessBase"]
[SourceQuality "1"]
[TimeControl "40/5400+30:1800+30"]

1. e4 {[%emt 0:00:03]} c5 {[%emt 0:00:25]} 2. Nf3 {[%emt 0:00:08]} d6 {[%emt 0:00:10]} 3. d4 {[%emt 0:00:06]} cxd4 {[%emt 0:00:08]} 4. Nxd4 {[%emt 0:00:06]} Nf6 {[%emt 0:00:08]} 5. Nc3 {[%emt 0:00:06]} Nc6 {[%emt 0:00:33]} 6. Bg5 {[%emt 0:00:07]} g6 {[%emt 0:01:11]} 7. Bxf6 {[%emt 0:14:26]} exf6 {[%emt 0:00:24]} 8. Be2 {[%emt 0:00:18]} Bg7 {[%emt 0:01:39]} 9. Ndb5 {[%emt 0:01:00]} O-O {[%emt 0:02:56]} 10. Qxd6 {[%emt 0:09:17]} f5 {[%emt 0:05:18]} 11. Rd1 {[%emt 0:18:55]} Qg5 {[%emt 0:28:47]} 12. Qg3 {[%emt 0:11:37]} Qe7 {[%emt 0:15:41]} 13. Qd6 {[%emt 0:12:30]} Qg5 {[%emt 0:02:59]} 14. Qg3 {[%emt 0:01:55]} Qe7 {[%emt 0:01:06]} 15. Qd6 {[%emt 0:02:11]} 1/2-1/2

[Event "CZE-ch Youth B16 2022"]
[Site "Luhacovice"]
[Date "2022.03.15"]
[Round "5.8"]
[White "Vilimek, Vit"]
[Black "Mametev, Artem"]
[Result "1-0"]
[ECO "B20"]
[WhiteElo "1794"]
[BlackElo "1848"]
[Annotator "NA"]
[PlyCount "87"]
[EventDate "2022.03.12"]
[EventType "swiss"]
[EventCountry "CZE"]
[SourceTitle "playchess.com"]
[Source "ChessBase"]
[SourceQuality "1"]
[TimeControl "40/5400+30:1800+30"]

1. e4 {[%emt 0:00:01]} c5 {[%emt 0:00:06]} 2. b3 {[%emt 0:00:06]} Nc6 {[%emt 0:02:33]} 3. Bb2 {[%emt 0:00:17]} d6 {[%emt 0:02:22]} 4. Bb5 {[%emt 0:01:29]} Bd7 {[%emt 0:02:57]} 5. Nc3 {[%emt 0:00:20]} Nd4 {[%emt 0:01:09]} 6. Bxd7+ {[%emt 0:00:09]} Qxd7 {[%emt 0:00:07]} 7. f4 {[%emt 0:01:09]} Nf6 {[%emt 0:11:35]} 8. Nf3 {[%emt 0:06:02]} e6 {[%emt 0:07:01]} 9. O-O {[%emt 0:02:55]} Nxf3+ {[%emt 0:03:50]} (9... Be7 $11) 10. Qxf3 {[%emt 0:00:32]} ({But not} 10. gxf3 d5 $11) 10... Be7 {[%emt 0:00:37]} (10... Qc6 $14 {feels stronger.}) 11. e5 {[%emt 0:11:33]} dxe5 {[%emt 0:00:14]} 12. fxe5 {[%emt 0:01:10]} Qd4+ {[%emt 0:00:41]} 13. Kh1 {[%emt 0:00:03]} Qxe5 {[%emt 0:00:16]} 14. Qxb7 {[%emt 0:01:25]} Rb8 {[%emt 0:21:15]} 15. Qc6+ {[%emt 0:01:02]} Kf8 {[%emt 0:00:10]} 16. Rae1 {[%emt 0:04:47]} Qd6 {[%emt 0:00:43]} 17. Qxd6 {[%emt 0:01:54]} Bxd6 {[%emt 0:00:11] [#]} 18. Ne4 $1 {[%emt 0:01:33]} Nxe4 {[%emt 0:02:16]} 19. Rxe4 {[%emt 0:00:02]} Re8 {[%emt 0:04:49]} 20. Ra4 {[%emt 0:07:03]} Re7 {[%emt 0:01:56]} 21. Ra6 {[%emt 0:01:43]} Rd7 {[%emt 0:06:48]} 22. Rc6 {[%emt 0:02:26]} Rd8 {[%emt 0:03:48]} 23. Bc3 {[%emt 0:03:11]} Be7 {[%emt 0:06:19]} 24. Rxe6 {[%emt 0:08:48]} f6 {[%emt 0:03:09]} 25. Rfe1 {[%emt 0:01:26]} Rd7 {[%emt 0:00:21]} 26. Rc6 {[%emt 0:05:50]} Kf7 {[%emt 0:01:29]} 27. d3 {[%emt 0:01:10]} Bd6 {[%emt 0:03:55]} 28. g3 {[%emt 0:07:03]} h5 {[%emt 0:01:17]} 29. Kg2 {[%emt 0:04:34]} h4 {[%emt 0:02:08]} 30. Ra6 {[%emt 0:03:50]} hxg3 {[%emt 0:02:47]} 31. hxg3 {[%emt 0:00:02]} Rh5 {[%emt 0:00:16]} 32. Bd2 {[%emt 0:02:05]} Be5 {[%emt 0:03:31]} 33. Be3 {[%emt 0:03:41]} (33. Bf4 $18) 33... Kg6 {[%emt 0:03:21]} 34. Rc6 {[%emt 0:04:51]} Bd4 {[%emt 0:01:58]} 35. Bxd4 {[%emt 0:01:43]} cxd4 {[%emt 0:00:01]} 36. Rc4 {[%emt 0:01:24]} Re5 {[%emt 0:00:46]} 37. Rxe5 {[%emt 0:02:05]} fxe5 {[%emt 0:00:01]} 38. Kf3 {[%emt 0:00:44]} Rd6 {[%emt 0:00:40]} 39. Ke4 {[%emt 0:00:23]} Kf6 {[%emt 0:00:06]} 40. Rc5 {[%emt 0:00:41]} Re6 {[%emt 0:01:06]} 41. a4 {[%emt 0:31:39]} g6 {[%emt 0:04:22]} 42. b4 {[%emt 0:00:00]} Re7 {[%emt 0:00:37]} 43. b5 {[%emt 0:00:00]} Re6 {[%emt 0:00:58]} 44. Rc6 $18 {[%emt 0:00:00]} 1-0

[Event "CZE-ch Youth B16 2022"]
[Site "Luhacovice"]
[Date "2022.03.15"]
[Round "5.9"]
[White "Vasinek, Martin"]
[Black "Kubiczek, Michal"]
[Result "1-0"]
[ECO "D30"]
[WhiteElo "1594"]
[BlackElo "1720"]
[Annotator "NA"]
[PlyCount "63"]
[EventDate "2022.03.12"]
[EventType "swiss"]
[EventCountry "CZE"]
[SourceTitle "playchess.com"]
[Source "ChessBase"]
[SourceQuality "1"]
[TimeControl "40/5400+30:1800+30"]

1. d4 d5 2. c4 e6 3. Nf3 Nf6 4. e3 Be7 5. Bd3 dxc4 6. Bxc4 c5 7. O-O cxd4 8. Nxd4 O-O 9. Nc3 Qc7 10. b3 a6 11. Bb2 b5 12. Bd3 Bb7 13. Rc1 Qb6 14. Qe2 Rd8 15. Rfd1 Nbd7 16. a3 Rac8 17. Bb1 h6 18. Kh1 Bd6 19. f3 Nf8 20. b4 Be5 21. Na2 Bd5 22. f4 Bb8 23. Nc3 Ba8 24. Na2 N8d7 25. Nf3 Be4 26. Rxc8 Rxc8 27. Bxe4 Nxe4 28. Rxd7 Bd6 29. Ne5 f6 30. Bd4 Qb8 31. Qh5 Rf8 32. Qg6 1-0

[Event "CZE-ch Youth B16 2022"]
[Site "Luhacovice"]
[Date "2022.03.15"]
[Round "5.10"]
[White "Simek, Viktor"]
[Black "Mrazek, Roman"]
[Result "1/2-1/2"]
[ECO "B76"]
[WhiteElo "1527"]
[BlackElo "1820"]
[Annotator "NA"]
[PlyCount "61"]
[EventDate "2022.03.12"]
[EventType "swiss"]
[EventCountry "CZE"]
[SourceTitle "playchess.com"]
[Source "ChessBase"]
[SourceQuality "1"]
[TimeControl "40/5400+30:1800+30"]

1. e4 {[%emt 0:00:03]} c5 {[%emt 0:00:05]} 2. Nf3 {[%emt 0:00:04]} d6 {[%emt 0:00:05]} 3. d4 {[%emt 0:00:03]} cxd4 {[%emt 0:00:02]} 4. Nxd4 {[%emt 0:00:05]} Nf6 {[%emt 0:00:10]} 5. Nc3 {[%emt 0:00:04]} g6 {[%emt 0:00:04]} 6. Be3 {[%emt 0:00:09]} Bg7 {[%emt 0:00:04]} 7. f3 {[%emt 0:00:04]} O-O {[%emt 0:00:07]} 8. Qd2 {[%emt 0:00:03]} Nc6 {[%emt 0:00:09]} 9. O-O-O {[%emt 0:00:06]} d5 {[%emt 0:00:08]} 10. exd5 {[%emt 0:00:45]} Nxd5 {[%emt 0:01:02]} 11. Nxc6 {[%emt 0:00:11]} bxc6 {[%emt 0:00:05]} 12. Nxd5 {[%emt 0:00:04]} cxd5 {[%emt 0:00:09]} 13. Qxd5 {[%emt 0:00:03]} Qc7 {[%emt 0:00:11]} 14. Qxa8 {[%emt 0:00:19]} Bf5 {[%emt 0:00:13]} 15. Qxf8+ {[%emt 0:00:05]} Kxf8 {[%emt 0:00:51]} 16. Rd2 {[%emt 0:00:35]} Qb8 {[%emt 0:07:52]} 17. b3 {[%emt 0:00:43]} Bc3 {[%emt 0:05:43]} (17... e6 $11 18. Bc4 Qe5) 18. Rd5 {[%emt 0:07:40]} e5 $2 {[%emt 0:12:28]} (18... Be6 $14 19. Bh6+ Bg7 20. Bxg7+ Kxg7) 19. Be2 $2 {[%emt 0:34:31]} (19. Bc4 $18) 19... Kg7 {[%emt 0:05:05]} 20. Rhd1 {[%emt 0:06:54]} Qb4 {[%emt 0:08:58]} 21. Bc5 {[%emt 0:07:39]} Qf4+ {[%emt 0:00:09]} 22. Kb1 {[%emt 0:00:41]} Qxh2 {[%emt 0:01:24]} 23. Bf1 $11 {[%emt 0:01:04]} ({Much weaker is} 23. Bxa7 Qxg2 24. Bd3 Be6 $17) 23... a5 {[%emt 0:02:38]} 24. Rd8 {[%emt 0:04:21]} a4 {[%emt 0:11:46]} 25. Bf8+ {[%emt 0:07:53]} Kf6 {[%emt 0:02:02]} 26. Re8 {[%emt 0:04:08]} axb3 27. Be7+ {[%emt 0:00:51]} Kg7 {[%emt 0:09:26]} 28. Bf8+ {[%emt 0:00:04]} Kf6 {[%emt 0:00:17]} 29. Be7+ {[%emt 0:00:03]} Kg7 {[%emt 0:00:03]} 30. Bf8+ {[%emt 0:00:05]} Kf6 {[%emt 0:00:05]} 31. Be7+ {[%emt 0:00:05]} 1/2-1/2

[Event "CZE-ch Youth B16 2022"]
[Site "Luhacovice"]
[Date "2022.03.15"]
[Round "5.11"]
[White "Oborny, Stanislav"]
[Black "Trojan, Matyas"]
[Result "0-1"]
[ECO "C77"]
[WhiteElo "1674"]
[BlackElo "1582"]
[Annotator "NA"]
[PlyCount "98"]
[EventDate "2022.03.12"]
[EventType "swiss"]
[EventCountry "CZE"]
[SourceTitle "playchess.com"]
[Source "ChessBase"]
[SourceQuality "1"]
[TimeControl "40/5400+30:1800+30"]

1. e4 {[%emt 0:00:05]} e5 {[%emt 0:00:06]} 2. Nf3 {[%emt 0:00:05]} Nc6 {[%emt 0:00:04]} 3. Bb5 {[%emt 0:00:07]} a6 {[%emt 0:00:06]} 4. Ba4 {[%emt 0:00:06]} Nf6 {[%emt 0:00:11]} 5. d3 {[%emt 0:01:42]} b5 {[%emt 0:05:38]} 6. Bb3 {[%emt 0:00:06]} Be7 {[%emt 0:03:37]} 7. O-O {[%emt 0:00:59]} d6 {[%emt 0:02:40]} 8. c3 {[%emt 0:02:58]} O-O {[%emt 0:00:39]} 9. h3 {[%emt 0:05:58]} Bb7 {[%emt 0:01:51]} 10. Re1 {[%emt 0:01:23]} Re8 {[%emt 0:03:18]} 11. Nbd2 {[%emt 0:02:56]} Bf8 {[%emt 0:03:12]} 12. Nf1 {[%emt 0:09:01]} g6 {[%emt 0:03:09]} 13. Bg5 {[%emt 0:06:27]} Bg7 {[%emt 0:03:21]} 14. Ne3 {[%emt 0:07:28]} Qd7 {[%emt 0:06:29]} 15. Qd2 {[%emt 0:07:24]} Na5 {[%emt 0:10:18]} 16. Bc2 {[%emt 0:01:54]} c5 {[%emt 0:13:31]} 17. Rad1 {[%emt 0:11:57]} d5 {[%emt 0:10:09]} 18. Bxf6 {[%emt 0:06:00]} Bxf6 {[%emt 0:00:21]} 19. exd5 {[%emt 0:00:43]} Bxd5 {[%emt 0:01:18]} 20. Ng4 {[%emt 0:05:34]} Qd6 {[%emt 0:08:19]} 21. Qe2 {[%emt 0:01:45]} Bxa2 {[%emt 0:03:45]} 22. Ra1 {[%emt 0:01:21]} e4 {[%emt 0:02:10]} 23. Rxa2 {[%emt 0:03:36]} exf3 {[%emt 0:00:20]} 24. Qxe8+ {[%emt 0:00:07]} Rxe8 {[%emt 0:00:05]} 25. Rxe8+ {[%emt 0:00:05]} Kg7 {[%emt 0:00:06]} 26. Rxa5 {[%emt 0:01:04]} Bd8 {[%emt 0:00:39]} 27. Ra1 {[%emt 0:01:05]} fxg2 {[%emt 0:00:21]} 28. Rae1 {[%emt 0:02:14]} Bh4 {[%emt 0:06:30]} 29. Ne5 {[%emt 0:13:21]} Qf6 {[%emt 0:03:44]} 30. Re2 {[%emt 0:00:31]} Qf5 {[%emt 0:01:30]} 31. Ng4 {[%emt 0:05:54]} h5 {[%emt 0:01:36]} 32. d4 {[%emt 0:01:07]} Qf4 {[%emt 0:00:26]} 33. Ne3 {[%emt 0:01:04]} cxd4 {[%emt 0:01:58]} 34. Nxg2 {[%emt 0:00:40]} Qc1+ {[%emt 0:00:12]} 35. Kh2 {[%emt 0:00:32]} Bg5 {[%emt 0:00:52]} 36. cxd4 {[%emt 0:00:33]} Qxb2 {[%emt 0:03:15]} 37. d5 {[%emt 0:00:30]} Qd4 {[%emt 0:00:24]} 38. R8e5 {[%emt 0:00:32]} Bf6 {[%emt 0:00:44]} 39. R2e4 {[%emt 0:00:32]} Bxe5+ {[%emt 0:00:57]} 40. f4 {[%emt 0:00:21]} Qc3 {[%emt 0:01:29]} 41. fxe5 {[%emt 0:00:37]} Qxc2 {[%emt 0:00:08]} 42. Re3 {[%emt 0:03:01]} Qd2 {[%emt 0:01:44]} 43. d6 {[%emt 0:00:12]} b4 {[%emt 0:01:45]} 44. Kg3 {[%emt 0:01:41]} a5 {[%emt 0:00:56]} 45. Kf3 {[%emt 0:00:38]} b3 {[%emt 0:01:59]} 46. e6 {[%emt 0:03:05]} fxe6 {[%emt 0:01:24]} 47. Nf4 {[%emt 0:00:15]} Qxd6 {[%emt 0:02:38]} 48. Rxe6 {[%emt 0:00:07]} Qxe6 {[%emt 0:03:40]} 49. Nxe6+ {[%emt 0:00:13]} Kh8 {[%emt 0:00:08]} 0-1